Workbook

Sheet Sheet1
A1: Monte Carlo Simulation for a Function
B3: This graphing utility produces the graph
C4: of any desired function
D5: y = f(x)
B6: on any interval from x = a to x = b.
A8: Enter the function in terms of x: f(x) = | F8: exp(1.5*x)
A11: Now enter the interval for x:
C12: xMin = | D12: -3
C13: xMax = | D13: 3
A16: How many random points? (10 - 50)
B17: =E17 -> 41 | D17: 0 | E17: 41 | J17: The graph of the function y = | M17: =F8 -> exp(1.5*x)
J18: =" and "& TEXT(B17,"##") & " randomly generated points" -> and 41 randomly generated points
A21: Click each item below for suggestions and investigations | K21: 0
B22: Item 1
B23: Item 2
B24: Item 3
B25: Item 4
A30: To access/download all the DIGMath Apps for Calculus
A31: Click this link: | C31: DIGMath for Calculus
A33: Created by: Sheldon P. Gordon
A34: Farmingdale State College
A35: Development of this module was supported by the
A36: NSF's Division of Undergraduate Education
A37: under grants DUE-0310123 and DUE-0442160.

Sheet Sheet2
D1: x | E1: y = f(x) | G1: random pts | H1: x | I1: y
E2: =[2]Sheet1!#REF! -> 
C3: 1 | D3: =[2]Sheet1!D12 -> -3 | E3: =EXP(2.5*xx) -> 0.0005530843701 | G3: =INT(500*RAND()+0.5) -> 473 | H3: =VLOOKUP($G3,$C$3:$E$503,2) -> 2.664 | I3: =VLOOKUP($G3,$C$3:$E$2503,3) -> 780.5509371
C4: 2 | D4: =D3+dxx -> -2.988 | E4: 0.0005699282969 | G4: =INT(500*RAND()+0.5) -> 383 | H4: =VLOOKUP($G4,$C$3:$E$503,2) -> 1.584 | I4: =VLOOKUP($G4,$C$3:$E$2503,3) -> 52.45732595
C5: 3 | D5: =D4+dxx -> -2.976 | E5: 0.0005872851975 | G5: 116 | H5: -1.62 | I5: 0.01742237464
C6: 4 | D6: =D5+dxx -> -2.964 | E6: 0.0006051706945 | G6: 385 | H6: 1.608 | I6: 55.70110583
C7: 5 | D7: =D6+dxx -> -2.952 | E7: 0.000623600886 | G7: 107 | H7: -1.728 | I7: 0.01329988354
C8: 6 | D8: =D7+dxx -> -2.94 | E8: 0.0006425923604 | G8: 463 | H8: 2.544 | I8: 578.2463564
C9: 7 | D9: =D8+dxx -> -2.928 | E9: 0.0006621622112 | G9: 100 | H9: -1.812 | I9: 0.01078067607
C10: 8 | D10: =D9+dxx -> -2.916 | E10: 0.0006823280528 | G10: 180 | H10: -0.852 | I10: 0.1188372939
C11: 9 | D11: =D10+dxx -> -2.904 | E11: 0.0007031080356 | G11: 15 | H11: -2.832 | I11: 0.0008417731484
A12: delta x = | B12: =(xMax-xMin)/500 -> 0.012 | C12: 10 | D12: =D11+dxx -> -2.892 | E12: 0.0007245208631 | G12: 150 | H12: -1.212 | I12: 0.04831563813
C13: 11 | D13: =D12+dxx -> -2.88 | E13: 0.0007465858084 | G13: =IF(C13<=n,INT(500*RAND()+0.5),G$3) -> 111 | H13: =IF(C13<=n,VLOOKUP($G13,$C$3:$E$503,2),H$3) -> -1.68 | I13: =IF(C13<=n,VLOOKUP($G13,$C$3:$E$503,3),I$3) -> 0.01499557682
C14: 12 | D14: =D13+dxx -> -2.868 | E14: 0.0007693227312 | G14: 427 | H14: 2.112 | I14: 196.3698754
C15: 13 | D15: =D14+dxx -> -2.856 | E15: 0.0007927520965 | G15: 99 | H15: -1.824 | I15: 0.01046205894
C16: 14 | D16: =D15+dxx -> -2.844 | E16: 0.0008168949921 | G16: 76 | H16: -2.1 | I16: 0.005247518399
C17: 15 | D17: =D16+dxx -> -2.832 | E17: 0.0008417731484 | G17: 412 | H17: 1.932 | I17: 125.2109607
C18: 16 | D18: =D17+dxx -> -2.82 | E18: 0.0008674089573 | G18: 58 | H18: -2.316 | I18: 0.003057982176
C19: 17 | D19: =D18+dxx -> -2.808 | E19: 0.0008938254928 | G19: 476 | H19: 2.7 | I19: 854.0587625
C20: 18 | D20: =D19+dxx -> -2.796 | E20: 0.0009210465317 | G20: 10 | H20: -2.892 | I20: 0.0007245208631
C21: 19 | D21: =D20+dxx -> -2.784 | E21: 0.0009490965745 | G21: 219 | H21: -0.384 | I21: 0.382892886
C22: 20 | D22: =D21+dxx -> -2.772 | E22: 0.0009780008684 | G22: 235 | H22: -0.192 | I22: 0.6187833918
C23: 21 | D23: =D22+dxx -> -2.76 | E23: 0.001007785429 | G23: 179 | H23: -0.864 | I23: 0.115325121
C24: 22 | D24: =D23+dxx -> -2.748 | E24: 0.001038477065 | G24: 54 | H24: -2.364 | I24: 0.002712186887
C25: 23 | D25: =D24+dxx -> -2.736 | E25: 0.0010701034 | G25: 485 | H25: 2.808 | I25: 1118.786618
C26: 24 | D26: =D25+dxx -> -2.724 | E26: 0.0011026929 | G26: 113 | H26: -1.656 | I26: 0.0159228515
C27: 25 | D27: =D26+dxx -> -2.712 | E27: 0.001136274898 | G27: 496 | H27: 2.94 | I27: 1556.196528
C28: 26 | D28: =D27+dxx -> -2.7 | E28: 0.001170879621 | G28: 263 | H28: 0.144 | I28: 1.433329415
C29: 27 | D29: =D28+dxx -> -2.688 | E29: 0.001206538214 | G29: 70 | H29: -2.172 | I29: 0.004383095803
C30: 28 | D30: =D29+dxx -> -2.676 | E30: 0.001243282773 | G30: 303 | H30: 0.624 | I30: 4.758821245
C31: 29 | D31: =D30+dxx -> -2.664 | E31: 0.00128114637 | G31: 239 | H31: -0.144 | I31: 0.6976763261
C32: 30 | D32: =D31+dxx -> -2.652 | E32: 0.001320163086 | G32: 94 | H32: -1.884 | I32: 0.009004777582
C33: 31 | D33: =D32+dxx -> -2.64 | E33: 0.001360368038 | G33: 487 | H33: 2.832 | I33: 1187.968519
C34: 32 | D34: =D33+dxx -> -2.628 | E34: 0.001401797412 | G34: 313 | H34: 0.744 | I34: 6.423736771
C35: 33 | D35: =D34+dxx -> -2.616 | E35: 0.001444488499 | G35: 14 | H35: -2.844 | I35: 0.0008168949921
C36: 34 | D36: =D35+dxx -> -2.604 | E36: 0.001488479723 | G36: 314 | H36: 0.756 | I36: 6.619368681
C37: 35 | D37: =D36+dxx -> -2.592 | E37: 0.001533810679 | G37: 399 | H37: 1.776 | I37: 84.77494167
C38: 36 | D38: =D37+dxx -> -2.58 | E38: 0.001580522169 | G38: 279 | H38: 0.336 | I38: 2.316366977
C39: 37 | D39: =D38+dxx -> -2.568 | E39: 0.001628656235 | G39: 481 | H39: 2.76 | I39: 992.2747156
C40: 38 | D40: =D39+dxx -> -2.556 | E40: 0.001678256201 | G40: 87 | H40: -1.968 | I40: 0.007299130847
C41: 39 | D41: =D40+dxx -> -2.544 | E41: 0.001729366712 | G41: 452 | H41: 2.412 | I41: 415.7150294
C42: 40 | D42: =D41+dxx -> -2.532 | E42: 0.001782033769 | G42: 441 | H42: 2.28 | I42: 298.867401
C43: 41 | D43: =D42+dxx -> -2.52 | E43: 0.001836304777 | G43: 22 | H43: -2.748 | I43: 0.001038477065
C44: 42 | D44: =D43+dxx -> -2.508 | E44: 0.001892228583 | G44: 473 | H44: 2.664 | I44: 780.5509371
C45: 43 | D45: =D44+dxx -> -2.496 | E45: 0.001949855523 | G45: 473 | H45: 2.664 | I45: 780.5509371
C46: 44 | D46: =D45+dxx -> -2.484 | E46: 0.002009237464 | G46: 473 | H46: 2.664 | I46: 780.5509371
C47: 45 | D47: =D46+dxx -> -2.472 | E47: 0.002070427855 | G47: 473 | H47: 2.664 | I47: 780.5509371
C48: 46 | D48: =D47+dxx -> -2.46 | E48: 0.00213348177 | G48: 473 | H48: 2.664 | I48: 780.5509371
C49: 47 | D49: =D48+dxx -> -2.448 | E49: 0.002198455963 | G49: 473 | H49: 2.664 | I49: 780.5509371
C50: 48 | D50: =D49+dxx -> -2.436 | E50: 0.002265408915 | G50: 473 | H50: 2.664 | I50: 780.5509371
C51: 49 | D51: =D50+dxx -> -2.424 | E51: 0.002334400888 | G51: 473 | H51: 2.664 | I51: 780.5509371
C52: 50 | D52: =D51+dxx -> -2.412 | E52: 0.002405493979 | G52: 473 | H52: 2.664 | I52: 780.5509371
C53: 51 | D53: =D52+dxx -> -2.4 | E53: 0.002478752177
C54: 52 | D54: =D53+dxx -> -2.388 | E54: 0.002554241419 | H54: =n -> 41
C55: 53 | D55: =D54+dxx -> -2.376 | E55: 0.002632029651
C56: 54 | D56: =D55+dxx -> -2.364 | E56: 0.002712186887
C57: 55 | D57: =D56+dxx -> -2.352 | E57: 0.002794785275
C58: 56 | D58: =D57+dxx -> -2.34 | E58: 0.002879899158
C59: 57 | D59: =D58+dxx -> -2.328 | E59: 0.002967605145
C60: 58 | D60: =D59+dxx -> -2.316 | E60: 0.003057982176
C61: 59 | D61: =D60+dxx -> -2.304 | E61: 0.003151111598
C62: 60 | D62: =D61+dxx -> -2.292 | E62: 0.003247077234
C63: 61 | D63: =D62+dxx -> -2.28 | E63: 0.003345965457
C64: 62 | D64: =D63+dxx -> -2.268 | E64: 0.003447865276
C65: 63 | D65: =D64+dxx -> -2.256 | E65: 0.003552868406
C66: 64 | D66: =D65+dxx -> -2.244 | E66: 0.003661069358
C67: 65 | D67: =D66+dxx -> -2.232 | E67: =EXP(2.5*xx) -> 0.003772565519
C68: 66 | D68: =D67+dxx -> -2.22 | E68: 0.003887457243
C69: 67 | D69: =D68+dxx -> -2.208 | E69: 0.004005847942
C70: 68 | D70: =D69+dxx -> -2.196 | E70: 0.004127844174
C71: 69 | D71: =D70+dxx -> -2.184 | E71: 0.004253555745
C72: 70 | D72: =D71+dxx -> -2.172 | E72: 0.004383095803
C73: 71 | D73: =D72+dxx -> -2.16 | E73: 0.004516580943
C74: 72 | D74: =D73+dxx -> -2.148 | E74: 0.00465413131
C75: 73 | D75: =D74+dxx -> -2.136 | E75: 0.00479587071
C76: 74 | D76: =D75+dxx -> -2.124 | E76: 0.004941926718
C77: 75 | D77: =D76+dxx -> -2.112 | E77: 0.005092430793
C78: 76 | D78: =D77+dxx -> -2.1 | E78: 0.005247518399
C79: 77 | D79: =D78+dxx -> -2.088 | E79: 0.005407329126
C80: 78 | D80: =D79+dxx -> -2.076 | E80: 0.005572006815
C81: 79 | D81: =D80+dxx -> -2.064 | E81: 0.005741699686
C82: 80 | D82: =D81+dxx -> -2.052 | E82: 0.005916560474
C83: 81 | D83: =D82+dxx -> -2.04 | E83: 0.006096746566
C84: 82 | D84: =D83+dxx -> -2.028 | E84: 0.006282420141
C85: 83 | D85: =D84+dxx -> -2.016 | E85: 0.006473748318
C86: 84 | D86: =D85+dxx -> -2.004 | E86: 0.006670903306
C87: 85 | D87: =D86+dxx -> -1.992 | E87: 0.006874062557
C88: 86 | D88: =D87+dxx -> -1.98 | E88: 0.007083408929
C89: 87 | D89: =D88+dxx -> -1.968 | E89: 0.007299130847
C90: 88 | D90: =D89+dxx -> -1.956 | E90: 0.007521422475
C91: 89 | D91: =D90+dxx -> -1.944 | E91: 0.007750483891
C92: 90 | D92: =D91+dxx -> -1.932 | E92: 0.007986521266
C93: 91 | D93: =D92+dxx -> -1.92 | E93: 0.008229747049
C94: 92 | D94: =D93+dxx -> -1.908 | E94: 0.00848038016
C95: 93 | D95: =D94+dxx -> -1.896 | E95: 0.008738646185
C96: 94 | D96: =D95+dxx -> -1.884 | E96: 0.009004777582
C97: 95 | D97: =D96+dxx -> -1.872 | E97: 0.009279013887
C98: 96 | D98: =D97+dxx -> -1.86 | E98: 0.009561601931
C99: 97 | D99: =D98+dxx -> -1.848 | E99: 0.009852796061
C100: 98 | D100: =D99+dxx -> -1.836 | E100: 0.01015285837
C101: 99 | D101: =D100+dxx -> -1.824 | E101: 0.01046205894
C102: 100 | D102: =D101+dxx -> -1.812 | E102: 0.01078067607
C103: 101 | D103: =D102+dxx -> -1.8 | E103: 0.01110899654
C104: 102 | D104: =D103+dxx -> -1.788 | E104: 0.01144731585
C105: 103 | D105: =D104+dxx -> -1.776 | E105: 0.01179593852
C106: 104 | D106: =D105+dxx -> -1.764 | E106: 0.01215517833
C107: 105 | D107: =D106+dxx -> -1.752 | E107: 0.01252535862
C108: 106 | D108: =D107+dxx -> -1.74 | E108: 0.01290681258
C109: 107 | D109: =D108+dxx -> -1.728 | E109: 0.01329988354
C110: 108 | D110: =D109+dxx -> -1.716 | E110: 0.0137049253
C111: 109 | D111: =D110+dxx -> -1.704 | E111: 0.01412230241
C112: 110 | D112: =D111+dxx -> -1.692 | E112: 0.01455239055
C113: 111 | D113: =D112+dxx -> -1.68 | E113: 0.01499557682
C114: 112 | D114: =D113+dxx -> -1.668 | E114: 0.01545226012
C115: 113 | D115: =D114+dxx -> -1.656 | E115: 0.0159228515
C116: 114 | D116: =D115+dxx -> -1.644 | E116: 0.01640777453
C117: 115 | D117: =D116+dxx -> -1.632 | E117: 0.01690746565
C118: 116 | D118: =D117+dxx -> -1.62 | E118: 0.01742237464
C119: 117 | D119: =D118+dxx -> -1.608 | E119: 0.01795296494
C120: 118 | D120: =D119+dxx -> -1.596 | E120: 0.01849971412
C121: 119 | D121: =D120+dxx -> -1.584 | E121: 0.01906311429
C122: 120 | D122: =D121+dxx -> -1.572 | E122: 0.01964367255
C123: 121 | D123: =D122+dxx -> -1.56 | E123: 0.02024191145
C124: 122 | D124: =D123+dxx -> -1.548 | E124: 0.02085836943
C125: 123 | D125: =D124+dxx -> -1.536 | E125: 0.02149360135
C126: 124 | D126: =D125+dxx -> -1.524 | E126: 0.02214817896
C127: 125 | D127: =D126+dxx -> -1.512 | E127: 0.02282269143
C128: 126 | D128: =D127+dxx -> -1.5 | E128: 0.02351774586
C129: 127 | D129: =D128+dxx -> -1.488 | E129: 0.02423396785
C130: 128 | D130: =D129+dxx -> -1.476 | E130: 0.02497200204
C131: 129 | D131: =D130+dxx -> -1.464 | E131: =EXP(2.5*xx) -> 0.02573251273
C132: 130 | D132: =D131+dxx -> -1.452 | E132: 0.02651618441
C133: 131 | D133: =D132+dxx -> -1.44 | E133: 0.02732372245
C134: 132 | D134: =D133+dxx -> -1.428 | E134: 0.02815585368
C135: 133 | D135: =D134+dxx -> -1.416 | E135: 0.02901332708
C136: 134 | D136: =D135+dxx -> -1.404 | E136: 0.02989691444
C137: 135 | D137: =D136+dxx -> -1.392 | E137: 0.03080741103
C138: 136 | D138: =D137+dxx -> -1.38 | E138: 0.03174563638
C139: 137 | D139: =D138+dxx -> -1.368 | E139: 0.03271243494
C140: 138 | D140: =D139+dxx -> -1.356 | E140: 0.0337086769
C141: 139 | D141: =D140+dxx -> -1.344 | E141: 0.03473525894
C142: 140 | D142: =D141+dxx -> -1.332 | E142: 0.03579310507
C143: 141 | D143: =D142+dxx -> -1.32 | E143: 0.0368831674
C144: 142 | D144: =D143+dxx -> -1.308 | E144: 0.03800642708
C145: 143 | D145: =D144+dxx -> -1.296 | E145: 0.0391638951
C146: 144 | D146: =D145+dxx -> -1.284 | E146: 0.04035661327
C147: 145 | D147: =D146+dxx -> -1.272 | E147: 0.04158565512
C148: 146 | D148: =D147+dxx -> -1.26 | E148: 0.04285212687
C149: 147 | D149: =D148+dxx -> -1.248 | E149: 0.04415716842
C150: 148 | D150: =D149+dxx -> -1.236 | E150: 0.0455019544
C151: 149 | D151: =D150+dxx -> -1.224 | E151: 0.04688769522
C152: 150 | D152: =D151+dxx -> -1.212 | E152: 0.04831563813
C153: 151 | D153: =D152+dxx -> -1.2 | E153: 0.04978706837
C154: 152 | D154: =D153+dxx -> -1.188 | E154: 0.05130331033
C155: 153 | D155: =D154+dxx -> -1.176 | E155: 0.05286572874
C156: 154 | D156: =D155+dxx -> -1.164 | E156: 0.05447572987
C157: 155 | D157: =D156+dxx -> -1.152 | E157: 0.05613476283
C158: 156 | D158: =D157+dxx -> -1.14 | E158: 0.05784432087
C159: 157 | D159: =D158+dxx -> -1.128 | E159: 0.05960594271
C160: 158 | D160: =D159+dxx -> -1.116 | E160: 0.06142121392
C161: 159 | D161: =D160+dxx -> -1.104 | E161: 0.06329176836
C162: 160 | D162: =D161+dxx -> -1.092 | E162: 0.06521928967
C163: 161 | D163: =D162+dxx -> -1.08 | E163: 0.06720551274
C164: 162 | D164: =D163+dxx -> -1.068 | E164: 0.06925222531
C165: 163 | D165: =D164+dxx -> -1.056 | E165: 0.07136126956
C166: 164 | D166: =D165+dxx -> -1.044 | E166: 0.07353454376
C167: 165 | D167: =D166+dxx -> -1.032 | E167: 0.07577400402
C168: 166 | D168: =D167+dxx -> -1.02 | E168: 0.078081666
C169: 167 | D169: =D168+dxx -> -1.008 | E169: 0.08045960675
C170: 168 | D170: =D169+dxx -> -0.996 | E170: 0.08290996658
C171: 169 | D171: =D170+dxx -> -0.984 | E171: 0.08543495097
C172: 170 | D172: =D171+dxx -> -0.972 | E172: 0.08803683258
C173: 171 | D173: =D172+dxx -> -0.96 | E173: 0.09071795329
C174: 172 | D174: =D173+dxx -> -0.948 | E174: 0.09348072628
C175: 173 | D175: =D174+dxx -> -0.936 | E175: 0.09632763823
C176: 174 | D176: =D175+dxx -> -0.924 | E176: 0.09926125156
C177: 175 | D177: =D176+dxx -> -0.912 | E177: 0.1022842067
C178: 176 | D178: =D177+dxx -> -0.9 | E178: 0.1053992246
C179: 177 | D179: =D178+dxx -> -0.888 | E179: 0.1086091088
C180: 178 | D180: =D179+dxx -> -0.876 | E180: 0.1119167486
C181: 179 | D181: =D180+dxx -> -0.864 | E181: 0.115325121
C182: 180 | D182: =D181+dxx -> -0.852 | E182: 0.1188372939
C183: 181 | D183: =D182+dxx -> -0.84 | E183: 0.1224564283
C184: 182 | D184: =D183+dxx -> -0.828 | E184: 0.1261857817
C185: 183 | D185: =D184+dxx -> -0.816 | E185: 0.1300287109
C186: 184 | D186: =D185+dxx -> -0.804 | E186: 0.1339886747
C187: 185 | D187: =D186+dxx -> -0.792 | E187: 0.1380692373
C188: 186 | D188: =D187+dxx -> -0.78 | E188: 0.1422740716
C189: 187 | D189: =D188+dxx -> -0.768 | E189: 0.1466069621
C190: 188 | D190: =D189+dxx -> -0.756 | E190: 0.1510718088
C191: 189 | D191: =D190+dxx -> -0.744 | E191: 0.1556726304
C192: 190 | D192: =D191+dxx -> -0.732 | E192: 0.1604135678
C193: 191 | D193: =D192+dxx -> -0.72 | E193: 0.1652988882
C194: 192 | D194: =D193+dxx -> -0.708 | E194: 0.1703329888
C195: 193 | D195: =D194+dxx -> -0.696 | E195: =EXP(2.5*xx) -> 0.1755204006
C196: 194 | D196: =D195+dxx -> -0.684 | E196: 0.1808657926
C197: 195 | D197: =D196+dxx -> -0.672 | E197: 0.186373976
C198: 196 | D198: =D197+dxx -> -0.66 | E198: 0.1920499086
C199: 197 | D199: =D198+dxx -> -0.648 | E199: 0.1978986991
C200: 198 | D200: =D199+dxx -> -0.636 | E200: 0.2039256117
... 302 more rows

Sheet Defining Function
A1: Defining a Function in Excel
A3: Computers have very specific rules you must follow when defining a function. If you don't, the program will either not work at all or will work incorrectly.
A5: 1. The Variable used should be the one named in the instruction, usually x, though sometimes y, t, Q (for an angle theta),
A6: or even x and y (for a function of two variables).
A8: 2. Order of Operations: There five arithmetic operations, addition (+), subtraction (-), multiplication (*), division (/), and exponentiation or power (^). When computers see any of these operation symbols, they perform the indicated steps in a very particular order. First, the power is done. Second, products and quotients of adjacent terms is done. Third, and last, sums and differences of adjacent terms are done. So, in 10*x^3 + 5*x – 7, say with x = 2, the first pass only calculates 2^3 and ignores the multiplications and the sums and differences to calculate 2^3 = 8. The second pass looks at 10*8 + 5*2 – 7 and only does the multiplications, so it produces 80 + 10 - 7. The third pass looks at the +’s and –‘s to produce 80 + 10 – 7 = 83.
A10: 3. Parentheses If you need an operation involving more than two adjacent terms, as in Ö4^3 + 6^2, the computer would take the square root of 4 to produce 2^3 + 6^2; it would then cube the 2 and square the 6 to produce 8 + 36; and finally it would add the 8 and the 36 to get 44. If you actually wanted the square root of the entire expression, you would need to use parentheses, as in Ö(4^3 + 6^2) to tell the computer to do all the operations inside the parentheses before taking the square root. Therefore, it would calculate (4^3 + 6^2) = 64 + 36 = 100 and then take the square root of Ö100 = 10.
A12: 4. Built-In Functions Computer programs have built-in functions for most common algebraic functions. In Excel, the square root function is denoted by SQRT(…), so SQRT(100) = 10. Alternatively, you could enter it as 100^.5 or 100^(1/2); notice that parentheses are needed to have the ½ done first. The common trig functions are SIN (…), COS (…), and TAN (…), where the arguments are automatically interpreted as being in radians, not degrees. The logarithm to the base 10 is represented by LOG (…) and the logarithm with the base e, known as the natural logarithm, is LN (…). The corresponding exponential function with base e is EXP (x). If x is the variable, then each of these would be SQRT (x), SIN (x), COS (x), TAN (x), LOG (x) (for log with base 10 ), LN (x) (for log with base e ), and EXP (x).

Sheet Sheet3
A1: s
